bitfinex-derivatives/quotes_ETHF0:USTF0_20251013
["timestamp","ask_amount","ask_price","bid_price","bid_amount"]
[1760399291094,0.97356,4236.8,4236.7,6.17247]
[1760399291297,0.88199,4236.5,4236.4,0.4245]
[1760399291598,1.09949,4236.5,4236.4,6.1715]
[1760399291800,0.4575,4236.5,4236.4,6.1715]
[1760399293598,0.42447,4236.8,4236.4,5.747]
[1760399293802,0.75607,4236.8,4236.7,0.42447]
[1760399293993,0.75607,4236.8,4236.7,6.17147]
[1760399294200,0.4643,4237.0,4236.9,0.42445]
[1760399294503,0.4643,4237.0,4236.9,6.17145]
[1760399296300,0.88874,4237.0,4236.9,5.747]
[1760399301209,1.11494,4237.0,4236.9,5.747]
[1760399301999,0.42446,4236.8,4236.7,0.42447]
[1760399302206,0.73366,4236.8,4236.7,6.16947]
[1760399303811,0.3092,4236.8,4236.7,6.16947]
[1760399304708,0.73366,4236.8,4236.7,0.42447]
[1760399304909,0.73366,4236.8,4236.7,6.16947]
[1760399305109,0.73366,4236.8,4236.7,0.42447]
[1760399305304,0.73366,4236.8,4236.7,6.16947]
[1760399306207,0.1327,4237.0,4236.9,0.42445]
[1760399306408,0.86634,4237.0,4236.9,0.42445]
[1760399306708,4.07405,4238.0,4237.7,0.42437]
[1760399306909,4.07405,4238.0,4237.8,6.16936]
[1760399306910,3.2078,4238.0,4237.8,6.16936]
[1760399307214,0.3092,4238.4,4238.2,0.42432]
[1760399307510,0.4351,4238.5,4238.4,0.4243]
[1760399307810,0.3092,4238.4,4238.3,5.745]
[1760399308109,0.31197458,4238.4,4238.3,5.745]
[1760399308305,0.42434,4238.0,4237.9,1.69411499]
[1760399308504,1.00364,4238.0,4237.8,1.69411499]
[1760399308710,0.3092,4237.3,4237.2,3.2078]
[1760399308910,0.3092,4237.3,4237.2,8.9518]
[1760399309409,0.5354,4237.3,4237.2,8.9518]
[1760399311414,0.3092,4237.3,4237.2,8.9518]
[1760399313518,0.7537,4237.3,4236.8,1.69411499]
[1760399313712,0.1348,4236.5,4236.3,0.42451]
[1760399314010,0.8685,4236.5,4236.4,5.744]
[1760399314216,0.42452,4236.2,4236.0,2.11865499]
[1760399314406,0.3092,4236.1,4236.0,0.42454]
[1760399314919,0.3092,4236.1,4236.0,6.16754]
[1760399315209,0.3092,4236.4,4236.2,0.42451]
[1760399315416,0.1348,4236.5,4236.3,6.16751]
[1760399315612,0.86849,4236.5,4236.4,5.743]
[1760399317622,1.09469,4236.5,4236.4,5.743]
[1760399318212,0.6702,4236.5,4235.9,3.2078]
[1760399318422,0.73373,4236.1,4236.0,5.743]
[1760399318614,0.73373,4236.1,4236.0,6.16754]
[1760399319323,0.73373,4236.1,4236.0,5.743]
[1760399319621,0.73373,4236.1,4236.0,6.16754]
[1760399319821,0.3092,4236.1,4236.0,6.16754]
[1760399321425,0.1348,4236.5,4236.0,5.743]
[1760399321624,0.3092,4236.4,4236.0,5.743]
[1760399321922,0.3092,4236.3,4236.2,0.42452]
[1760399322122,0.3092,4236.3,4236.2,6.16752]
[1760399322621,0.3092,4236.9,4236.7,0.42447]
[1760399322820,3.2078,4237.9,4237.4,0.4244]
[1760399323025,3.2078,4237.9,4237.8,0.322]
[1760399323326,4.07665,4237.9,4237.8,5.743]
[1760399323926,0.55925,4237.0,4236.9,0.322]
[1760399324119,3.2078,4237.4,4237.3,0.322]
[1760399324318,3.2078,4237.4,4237.3,6.1656]
[1760399324623,3.6523,4237.4,4237.3,5.904]
[1760399324824,3.9615,4237.4,4237.3,5.904]
[1760399327423,3.9615,4237.4,4237.3,5.743]
[1760399327622,4.0722,4237.4,4237.3,5.743]
[1760399327927,4.0722,4237.4,4237.3,6.0696]
[1760399328128,4.4101,4237.4,4237.3,6.0696]
[1760399331426,4.4101,4237.4,4237.3,5.9063]
[1760399334531,4.4101,4237.4,4237.3,6.59231]
[1760399334532,3.2078,4237.4,4237.3,6.59231]
[1760399335224,3.2078,4238.0,4237.9,0.84695]
[1760399335430,3.2078,4238.0,4237.9,6.58895]
[1760399338926,0.42437,4237.8,4237.5,0.1006]
[1760399339122,0.97447,4237.7,4237.6,6.063]
[1760399339324,1.18747,4237.7,4237.6,6.063]
[1760399339932,0.3257,4237.7,4237.6,6.1636]
[1760399340320,1.18747,4237.7,4237.6,6.063]
[1760399340630,0.3257,4237.7,4237.6,6.1636]
[1760399341433,0.75007,4237.7,4237.6,6.1636]
[1760399341631,0.75007,4237.7,4237.6,6.063]
[1760399341832,0.3257,4237.7,4237.6,6.063]
[1760399342033,0.3257,4237.7,4237.6,6.1636]
[1760399343135,0.3257,4237.7,4237.6,6.58798]
[1760399343834,0.3257,4237.7,4237.6,6.1636]
[1760399344932,0.75002,4238.3,4238.2,0.4226]
[1760399345134,0.97442,4238.3,4238.2,6.062]
[1760399345538,0.00277458,4238.4,4238.3,0.1006]
[1760399345732,0.00277458,4238.4,4238.3,0.4226]
[1760399345929,0.00277458,4238.4,4238.3,0.84691]
[1760399348338,3.5566,4239.5,4238.9,0.0978]
[1760399348541,0.3257,4239.4,4239.3,0.4108]
[1760399348729,0.3257,4239.4,4239.3,6.1498]
[1760399349130,0.32742836,4239.4,4239.3,6.15268535]
[1760399351935,0.00172836,4239.4,4239.3,6.15268535]
[1760399352228,0.32742836,4239.4,4239.3,6.15268535]
[1760399352935,0.76482836,4239.4,4239.3,6.05488535]
[1760399353126,1.18902836,4239.4,4239.3,0.15938535]
[1760399353334,1.18902836,4239.4,4239.3,0.00288535]
[1760399354139,0.6745,4238.0,4237.9,0.3222]
[1760399354333,0.6745,4238.0,4237.9,6.0602]
[1760399354935,3.2078,4238.2,4238.1,0.4229]
[1760399355135,3.2078,4238.2,4238.1,0.4257536]
[1760399355338,3.5288,4238.2,4238.1,0.4257536]
[1760399356241,3.5288,4238.7,4238.6,0.1003]
[1760399356437,3.2078,4238.7,4238.6,6.1597]
[1760399356743,3.2078,4239.2,4239.1,0.4217]
[1760399357044,3.2078,4239.2,4239.1,6.1597]
[1760399357339,3.5288,4239.2,4239.1,6.0594]
[1760399358744,3.2078,4239.2,4239.1,6.1597]
[1760399358946,0.00172836,4239.4,4239.2,0.1003]
[1760399359142,0.00172836,4239.4,4239.3,0.3214]
[1760399359436,0.00172836,4239.4,4239.3,0.4217]
[1760399361639,0.54762836,4239.4,4239.3,0.3214]
[1760399365544,0.32272836,4239.4,4239.3,0.3214]
[1760399365749,0.32272836,4239.4,4239.3,0.4217]
[1760399368446,0.00172836,4239.4,4239.3,0.4217]
[1760399370151,0.74692836,4239.4,4239.3,0.4217]
[1760399371552,0.32272836,4239.4,4239.3,0.4217]
[1760399371846,0.74692836,4239.4,4239.3,0.4217]
[1760399373448,0.00172836,4239.4,4239.3,0.84591]
[1760399374349,0.00172836,4239.4,4239.3,0.4217]
[1760399374548,0.32272836,4239.4,4239.3,0.4217]
[1760399374748,0.32272836,4239.4,4239.3,6.1567]
[1760399374949,0.32272836,4239.4,4239.3,6.58091]
[1760399374950,0.00172836,4239.4,4239.3,6.58091]
[1760399381653,0.97182836,4239.4,4239.3,6.0554]
[1760399382251,0.97182836,4239.4,4239.3,6.1557]
[1760399382252,0.32272836,4239.4,4239.3,6.1557]
[1760399382657,0.74692836,4239.4,4239.3,6.1557]
[1760399385648,0.32272836,4239.4,4239.3,6.1557]
[1760399385858,0.00172836,4239.4,4239.3,6.57991]
[1760399386057,0.00172836,4239.4,4239.3,6.1557]
[1760399386259,0.42592836,4239.4,4239.3,6.1557]
[1760399386457,0.76032836,4239.4,4239.3,6.1557]
[1760399387259,0.00172836,4239.4,4239.3,6.57991]
[1760399388948,0.42592836,4239.4,4239.3,6.57991]
[1760399389452,0.74482836,4239.4,4239.3,6.1557]
[1760399390161,0.00172836,4239.4,4239.3,6.57991]
[1760399391658,0.74482836,4239.4,4239.3,6.1557]
[1760399392060,0.95082836,4239.4,4239.3,6.1563]
[1760399392259,0.74482836,4239.4,4239.3,6.1563]
[1760399394262,0.74482836,4239.4,4239.3,6.58051]
[1760399395161,0.74482836,4239.4,4239.3,6.1563]
[1760399395754,0.74482836,4239.4,4239.3,6.0544]
[1760399396459,0.74482836,4239.4,4239.3,6.1563]
[1760399397559,0.3189,4238.9,4238.6,1.69411499]
[1760399397765,1.16112,4238.2,4238.1,0.1658536]
[1760399397961,0.7368,4238.2,4238.1,6.0608536]
[1760399399054,0.3189,4238.2,4238.1,6.0608536]
[1760399399261,0.42431,4238.3,4238.2,0.4279]
[1760399400062,0.74321,4238.3,4238.2,0.4279]
[1760399400264,0.94921,4238.3,4238.2,0.326]
[1760399400463,0.7368,4238.2,4238.1,0.0028536]
[1760399400662,3.9446,4238.2,4238.1,5.7358536]
[1760399400863,3.9446,4238.2,4238.1,5.8988536]
[1760399401464,3.9446,4238.2,4238.1,3.6e-06]
[1760399401661,4.49530467,4238.2,4238.1,3.6e-06]
[1760399403364,3.9446,4238.2,4238.1,3.6e-06]
[1760399404865,3.9446,4238.2,4238.1,0.1630036]
[1760399405163,3.9446,4238.2,4238.1,0.3260036]
[1760399405764,3.6257,4238.2,4238.1,3.6e-06]
[1760399406167,3.6257,4238.2,4238.1,0.1630036]
[1760399406462,3.9446,4238.2,4238.1,0.1630036]
[1760399407062,3.7327,4238.2,4238.1,0.4279036]
[1760399407270,3.2078,4238.2,4238.1,0.4279036]
[1760399407771,3.5267,4238.2,4238.1,0.4279036]
[1760399409764,3.2078,4238.2,4238.1,0.4279036]
[1760399410571,3.5267,4238.2,4238.1,0.4279036]
[1760399412075,3.2078,4238.2,4238.1,0.4279036]
[1760399413070,0.42428,4238.6,4238.1,0.4279036]
[1760399413273,0.42427,4238.7,4238.6,0.4279]
[1760399413468,0.74312,4239.2,4239.1,0.326]
[1760399413673,0.42422,4239.2,4239.1,6.1609]
[1760399413975,3.20952836,4239.4,4239.3,0.4279]
[1760399417174,1.06031,4240.3,4239.3,0.4279]
[1760399417175,0.42396,4241.9,4241.7,0.3218]
[1760399417376,0.1296,4242.0,4241.8,6.1543]
[1760399417578,0.42392,4242.3,4241.9,2.9408]
[1760399417776,0.8674,4242.5,4242.4,0.1609]
[1760399418074,0.022,4242.8,4242.4,6.05595911]
[1760399418379,0.022,4242.8,4242.7,0.6546]
[1760399419176,0.02380697,4242.8,4242.7,0.6546]
[1760399423687,0.56070697,4242.8,4242.7,0.4245]
[1760399423881,0.77270697,4242.8,4242.7,0.4245]
[1760399425685,0.56070697,4242.8,4242.7,0.6546]
[1760399426789,0.77270697,4242.8,4242.7,0.4245]
[1760399427092,0.02380697,4242.8,4242.7,0.6546]
[1760399427584,0.56070697,4242.8,4242.7,6.1525]
[1760399427779,0.33770697,4242.8,4242.7,6.3826]
[1760399428185,0.02380697,4242.8,4242.7,6.3826]
[1760399428384,0.33770697,4242.8,4242.7,6.3826]
[1760399428588,0.02380697,4242.8,4242.7,6.3826]
[1760399429983,0.02380697,4242.8,4242.7,9.5904]
[1760399431192,0.33770697,4242.8,4242.7,9.5904]
[1760399431485,0.56070697,4242.8,4242.7,9.5904]
[1760399431691,0.33770697,4242.8,4242.7,9.5904]
[1760399433592,1.30239,4242.5,4242.4,0.00215911]
[1760399434183,0.73779,4242.5,4242.4,0.42665911]
[1760399434389,0.73779,4242.5,4242.4,0.65675911]
[1760399434990,1.09039,4242.5,4242.4,0.42665911]
[1760399435689,1.30239,4242.5,4242.4,0.00215911]
[1760399435891,1.30239,4242.5,4242.4,0.21955911]
[1760399436190,1.30239,4242.5,4242.4,0.42665911]
[1760399438700,1.30239,4242.5,4242.4,0.00215911]
[1760399440299,0.7489,4241.8,4241.7,3.6323]
[1760399440500,0.223,4240.8,4240.3,0.2301]
[1760399440701,0.55369,4240.5,4240.4,5.9434]
[1760399440894,0.42411,4240.3,4240.2,3.2078]
[1760399441088,1.17301,4240.3,4240.2,3.4252]
[1760399441302,1.17301,4240.3,4240.2,3.63535492]
[1760399442099,1.17301,4240.3,4240.2,0.42755492]
[1760399443606,1.17301,4240.3,4240.2,0.00305492]
[1760399444899,1.17301,4240.3,4240.2,0.22045492]
[1760399445802,0.42411,4240.3,4240.2,0.67365492]
[1760399445997,1.16341,4240.3,4240.2,3.65145492]
[1760399451006,1.16341,4240.3,4240.2,3.42825492]
[1760399451903,0.94621,4240.3,4240.2,3.63585492]
[1760399452102,0.74011,4240.3,4240.2,3.86605492]
[1760399452898,4.18445,4240.9,4240.8,0.6567]
[1760399453206,4.39745,4240.9,4240.8,6.1535]
[1760399454104,4.39745,4240.9,4240.8,6.3837]
[1760399455709,4.39745,4240.9,4240.8,6.1535]
[1760399458908,0.75695,4240.9,4240.8,6.3837]
[1760399459102,0.97665,4240.9,4240.8,6.1535]
[1760399459708,1.18965,4240.9,4240.8,6.1535]
[1760399462110,0.97665,4240.9,4240.8,9.5915]
[1760399462608,0.75695,4240.9,4240.8,9.5915]
[1760399463207,0.97665,4240.9,4240.8,9.5915]
[1760399463606,1.18965,4240.9,4240.8,9.3613]
[1760399464100,1.18965,4240.9,4240.8,9.5915]
[1760399464809,0.97665,4240.9,4240.8,9.5915]
[1760399465914,0.42405,4240.9,4240.8,9.5915]
[1760399466208,1.18965,4240.9,4240.8,3.2078]
[1760399466811,1.18965,4240.9,4240.8,3.4267]
[1760399468916,1.18965,4240.9,4240.8,3.2078]
[1760399470315,1.18965,4240.9,4240.8,3.4267]
[1760399471113,1.18965,4240.9,4240.8,3.2078]
[1760399471513,1.18966,4240.8,4240.7,5.727]
[1760399474816,1.18966,4240.8,4240.7,5.9459]
[1760399475316,1.18966,4240.8,4240.7,5.727]
[1760399477217,1.17561,4240.3,4240.0,1.69411499]
[1760399477513,0.63701,4239.3,4239.2,1.64290499]
[1760399477816,0.96431,4239.3,4239.2,6.157]
[1760399478016,0.96431,4239.3,4239.2,6.3872]
[1760399478208,0.96667405,4239.3,4239.2,6.3900114]
[1760399479116,0.96667405,4239.3,4239.2,6.1598114]
[1760399479918,0.96667405,4239.3,4239.2,6.3900114]
[1760399481417,0.96667405,4239.3,4239.2,6.1598114]
[1760399481722,0.96667405,4239.3,4239.2,6.3900114]
[1760399482323,1.17807405,4239.3,4239.2,6.1598114]
[1760399483919,1.17807405,4239.3,4239.2,5.7288114]
[1760399484120,1.17807405,4239.3,4239.2,5.9362114]
[1760399484813,1.17807405,4239.3,4239.2,6.1598114]
[1760399486214,1.17807405,4239.3,4239.2,6.3900114]
[1760399486414,0.96667405,4239.3,4239.2,6.3900114]
[1760399488820,0.96667405,4239.3,4239.2,6.1598114]
[1760399489022,1.17807405,4239.3,4239.2,6.1598114]
[1760399491423,0.42657405,4239.3,4239.2,6.3900114]
[1760399492316,0.96667405,4239.3,4239.2,6.3900114]
[1760399492516,0.96667405,4239.3,4239.2,6.1598114]
[1760399494622,1.17807405,4239.3,4239.2,6.1598114]
[1760399496128,1.17807405,4239.3,4239.2,5.9362114]
[1760399496719,1.17807405,4239.3,4239.2,6.1598114]
[1760399497526,0.75387405,4239.3,4239.2,6.3900114]
[1760399498220,0.96667405,4239.3,4239.2,6.3900114]
[1760399501930,1.17807405,4239.3,4239.2,6.1598114]
[1760399502524,0.96667405,4239.3,4239.2,6.1598114]
[1760399502726,0.96667405,4239.3,4239.2,6.3900114]
[1760399503837,0.96667405,4239.3,4239.2,6.1598114]
[1760399504132,1.17807405,4239.3,4239.2,6.1598114]
[1760399504735,1.17807405,4239.3,4239.2,6.3900114]
[1760399506728,0.96667405,4239.3,4239.2,6.3900114]
[1760399511538,1.18447405,4239.3,4239.2,6.1598114]
[1760399512034,1.18447405,4239.3,4238.2,2.53649184]
[1760399512035,0.42427,4238.7,4238.6,1.68887688]
[1760399512230,1.19117,4238.7,4238.6,5.725]
[1760399513137,1.19117,4238.7,4238.6,5.19988936]
[1760399514325,1.19117,4238.7,4238.6,9.36e-06]
[1760399514527,1.19125,4237.9,4237.8,3.2818]
[1760399514833,1.19125,4237.9,4237.8,5.799]
[1760399515429,1.19125,4237.9,4237.8,5.80081039]
[1760399520942,0.75315,4237.9,4237.8,5.82391039]
[1760399521342,0.75315,4237.9,4237.8,5.80081039]
[1760399521648,0.97345,4237.9,4237.8,5.80081039]
[1760399522836,0.75315,4237.9,4237.8,5.82391039]
[1760399523038,1.06074,4238.5,4238.1,0.0231]
[1760399523342,0.75306,4238.8,4238.7,0.0971]
[1760399523539,0.75306,4238.8,4238.7,5.8221]
[1760399524540,0.75306,4238.8,4238.7,5.725]
[1760399524541,1.19116,4238.8,4238.7,5.725]
[1760399524740,0.88714,4238.0,4237.9,0.074]
[1760399525046,0.42434,4238.0,4237.9,7.51243223]
[1760399525548,0.42434,4238.0,4237.9,7.93678223]
[1760399525844,0.42434,4238.0,4237.9,7.51243223]
[1760399529051,0.42434,4238.0,4237.9,7.93678223]
[1760399529254,1.06057,4239.2,4238.9,0.4355]
[1760399529441,0.00236405,4239.3,4239.0,6.496]
[1760399529442,0.42423,4239.1,4239.0,6.496]
[1760399529646,0.00236405,4239.3,4239.2,1.19522]
[1760399529952,0.00236405,4239.3,4239.2,0.771]
[1760399534952,3.2078,4240.5,4240.4,0.4355]
[1760399535158,0.42409,4240.5,4240.4,9.6844]
[1760399535661,0.3207,4241.2,4240.9,0.4251]
[1760399535862,0.42404,4241.0,4240.9,0.7422]
[1760399536055,0.7475452,4241.0,4240.9,6.46822116]
[1760399537755,0.9683452,4241.0,4240.9,6.46822116]
[1760399538356,0.7475452,4241.0,4240.9,6.46822116]
[1760399538758,0.4268452,4241.0,4240.9,6.46822116]
[1760399539054,0.4268452,4241.0,4240.9,9.67602116]
[1760399540958,1.3180452,4241.0,4240.9,0.00302116]
[1760399541258,1.18181,4239.4,4239.3,0.4251]
[1760399541458,1.18181,4239.4,4239.3,6.1471]
[1760399541654,0.7576,4239.3,4239.2,3.2078]
[1760399541853,0.7576,4239.3,4239.2,8.9288]
[1760399542053,0.7576,4239.3,4239.2,8.93133588]
[1760399543163,0.7576,4239.3,4239.2,9.15123588]
[1760399547562,0.7576,4239.3,4239.2,8.93133588]
[1760399547768,0.7576,4239.3,4239.2,5.72353588]
[1760399548065,0.7576,4239.3,4239.2,0.00253588]
[1760399549360,0.42421,4239.4,4239.2,6.29513588]
[1760399549559,0.3207,4239.3,4239.2,6.29513588]
[1760399549757,0.5415,4239.3,4239.2,6.14863588]
[1760399550765,0.5415,4239.3,4239.2,6.29513588]
[1760399550966,0.5415,4239.3,4239.2,6.14863588]
[1760399552167,0.5415,4239.3,4239.2,6.29513588]
[1760399552558,0.3207,4239.3,4239.2,6.29513588]
[1760399556271,0.74491,4239.3,4239.2,6.71935588]
[1760399557767,0.4543,4239.5,4239.4,0.6441]
[1760399557971,0.42418,4239.6,4239.5,0.99579]
[1760399558174,0.96568,4239.6,4239.5,0.4251]
[1760399558368,1.18178,4239.6,4239.5,0.4251]
[1760399566672,1.06014,4240.9,4239.9,1.36659]
[1760399566877,0.25499,4240.5,4240.4,0.7326]
[1760399567073,0.47929,4240.5,4240.4,6.4526]
[1760399567971,0.25499,4240.5,4240.4,6.4526]
[1760399568575,0.4268452,4241.0,4240.9,0.7397]
[1760399568769,0.4268452,4241.0,4240.9,6.4597]
[1760399569174,0.4268452,4241.0,4240.9,6.88375]
[1760399569573,0.4268452,4241.0,4240.9,6.4597]
[1760399569975,0.9702452,4241.0,4240.9,6.4597]
[1760399573276,0.4268452,4241.0,4240.9,6.4597]
[1760399574081,0.9702452,4241.0,4240.9,6.4597]
[1760399577076,0.4268452,4241.0,4240.9,6.4577]
[1760399578185,0.9702452,4241.0,4240.9,6.4577]
[1760399579287,0.42407,4240.7,4240.6,0.3308]
[1760399579484,1.1828,4240.4,4240.3,3.4124]
[1760399579796,1.1828,4240.4,4240.3,9.6655]
[1760399580091,1.1828,4240.4,4240.3,9.3347]
[1760399580981,1.1828,4240.4,4240.3,5.9226]
[1760399581683,1.1828,4240.4,4240.3,6.4577]
[1760399581883,0.4241,4240.4,4240.3,10.08961]
[1760399582284,1.1950252,4241.0,4240.6,1.16377]
[1760399582285,0.42408,4240.7,4240.6,1.16377]
[1760399582484,0.42408,4240.7,4240.6,6.88177]
[1760399582894,0.42408,4240.7,4240.6,6.4577]
[1760399583190,0.42408,4240.7,4240.6,6.88178]
[1760399583789,0.42408,4240.7,4240.6,6.4577]
[1760399583988,0.96748,4240.7,4240.6,6.4577]
[1760399586298,0.42408,4240.7,4240.6,6.4577]
[1760399589389,1.05999,4241.6,4240.9,1.16375]
[1760399589597,0.331,4242.1,4241.8,0.3308]
[1760399589908,0.96733,4242.1,4242.0,0.7397]
[1760399590089,1.18263,4242.1,4242.0,0.7397]
[1760399590495,1.18537953,4242.1,4242.0,0.7397]
[1760399590893,1.18537953,4242.1,4241.9,5.717]
[1760399591097,1.18268,4241.6,4241.5,0.4089]
[1760399591298,0.42406,4240.8,4240.7,0.5354]
[1760399591501,1.18276,4240.8,4240.7,6.1259]
[1760399591800,1.18276,4240.8,4240.7,6.4567]
[1760399592498,0.1321,4241.5,4241.1,0.2046]
[1760399592499,0.42402,4241.2,4241.1,0.2046]
[1760399592705,0.75497,4241.7,4241.6,0.4089]
[1760399592901,0.42397,4241.7,4241.6,6.4557]
[1760399593503,0.42396,4241.9,4241.8,0.7397]
[1760399593698,0.42396,4241.9,4241.8,6.4557]
[1760399594097,0.42668953,4242.1,4242.0,0.7397]
[1760399594297,0.42668953,4242.1,4242.0,6.4557]
[1760399594497,1.18538953,4242.1,4242.0,6.1249]
[1760399595494,1.18538953,4242.1,4242.0,6.4352]
[1760399595495,0.42668953,4242.1,4242.0,6.4352]
[1760399597610,1.16568953,4242.1,4242.0,6.4352]
[1760399597811,1.16568953,4242.1,4242.0,5.9206]
[1760399598101,1.16568953,4242.1,4242.0,5.716]
[1760399598308,1.16568953,4242.1,4242.0,5.9224]
[1760399598501,1.16568953,4242.1,4242.0,6.1433]
[1760399600304,1.16568953,4242.1,4242.0,6.4536]
[1760399606814,0.94668953,4242.1,4242.0,6.4536]
[1760399607204,0.42668953,4242.1,4242.0,6.584]
[1760399608309,0.94668953,4242.1,4242.0,6.4536]
[1760399611712,0.42668953,4242.1,4242.0,6.584]
[1760399612312,0.00274953,4242.1,4242.0,6.584]
[1760399612520,0.00274953,4242.1,4242.0,10.21574]
[1760399612820,0.42667953,4242.1,4242.0,9.7918]
[1760399613011,0.42667953,4242.1,4242.0,6.584]
[1760399613314,1.16567953,4242.1,4242.0,6.4536]
[1760399614914,1.16567953,4242.1,4242.0,6.1433]
[1760399615115,1.16567953,4242.1,4242.0,5.9224]
[1760399615618,1.16567953,4242.1,4242.0,6.4536]
[1760399619319,0.73937953,4242.1,4242.0,6.4536]
[1760399619619,1.16567953,4242.1,4242.0,6.4536]
[1760399619810,0.94667953,4242.1,4242.0,6.4536]
[1760399620816,0.73937953,4242.1,4242.0,6.4536]
[1760399621113,0.3347,4242.8,4242.7,0.4273]
[1760399621415,0.3347,4242.8,4242.7,6.4506]
[1760399621721,0.44586,4242.8,4242.7,6.4506]
[1760399622113,0.44857589,4242.8,4242.7,6.45332418]
[1760399622916,0.96857589,4242.8,4242.7,6.45332418]
[1760399623726,1.18757589,4242.8,4242.7,0.00272418]
[1760399624723,1.18757589,4242.8,4242.7,4.18e-06]
[1760399631121,4.39537589,4242.8,4242.7,4.18e-06]
[1760399631926,4.39537589,4242.8,4242.7,0.21400418]
[1760399632119,4.39537589,4242.8,4242.7,0.73600418]
[1760399633919,4.39537589,4242.8,4242.7,0.42950418]
[1760399634124,4.39537589,4242.8,4242.7,0.21400418]
[1760399634932,4.39537589,4242.8,4242.7,0.42950418]
[1760399635127,4.39537589,4242.8,4242.7,0.73600418]
[1760399639426,4.39537589,4242.8,4242.7,0.42950418]
[1760399639725,4.08267589,4242.8,4242.7,4.18e-06]
[1760399640826,4.08267589,4242.8,4242.7,0.21400418]
[1760399641225,4.40667589,4242.8,4242.7,0.73600418]
[1760399641627,4.40667589,4242.8,4242.7,0.42950418]
[1760399642918,0.74787,4242.7,4242.6,5.22346418]
[1760399643123,1.19475,4241.9,4241.8,5.33023501]
[1760399643328,1.19475,4241.9,4241.8,9.6548]
[1760399643927,1.19475,4241.9,4241.8,9.6576687]
[1760399649635,1.19475,4241.9,4241.8,6.4498687]
[1760399649838,1.19475,4241.9,4241.8,9.6576687]
[1760399650535,0.42395,4241.9,4241.8,9.6576687]
[1760399650938,0.42389,4242.5,4242.4,0.736]
[1760399651238,0.42389,4242.5,4242.0,0.1252]
[1760399651239,1.19473,4242.1,4242.0,0.736]
[1760399651430,1.19473,4242.1,4242.0,6.446]
[1760399653141,0.97143,4242.1,4242.0,6.446]
[1760399655047,0.42393,4242.1,4242.0,6.86994]
[1760399655534,0.42393,4242.1,4242.0,6.99844]
[1760399656043,0.42393,4242.1,4242.0,6.5745]
[1760399656435,0.75323,4242.1,4242.0,6.5745]
[1760399662647,0.75323,4242.1,4242.0,6.99844]
[1760399663044,0.42393,4242.1,4242.0,6.99844]
[1760399664848,0.42392,4242.2,4242.1,1.18972]
[1760399671965,0.95797,4242.7,4242.6,0.2101]
[1760399672254,0.95797,4242.7,4242.6,6.4748]
[1760399672459,0.42387,4242.7,4242.6,6.89868]
[1760399672860,0.42387,4242.7,4242.6,6.4748]
[1760399675664,0.75317,4242.7,4242.6,6.4748]
[1760399676253,0.95797,4242.7,4242.6,6.4748]
[1760399677268,0.75317,4242.7,4242.6,6.89868]
[1760399677462,0.42387,4242.7,4242.6,6.89868]
[1760399678355,0.35401589,4242.8,4242.7,1.18967]
[1760399678558,0.77787589,4242.8,4242.7,1.18967]
[1760399679063,0.44857589,4242.8,4242.7,2.88355221]
[1760399679470,0.44857589,4242.8,4242.7,1.18967]
[1760399679666,0.77787589,4242.8,4242.7,1.18967]
[1760399679961,1.19657589,4242.8,4242.7,5.9181]
[1760399681571,0.44857589,4242.8,4242.7,6.4738]
[1760399682970,1.19657589,4242.8,4242.7,6.1406]
[1760399683267,1.19657589,4242.8,4242.7,6.4738]
[1760399683468,0.77787589,4242.8,4242.7,6.4738]
[1760399685978,0.98267589,4242.8,4242.7,6.4738]
[1760399687076,0.77787589,4242.8,4242.7,6.4738]
[1760399688076,0.98297589,4242.8,4242.7,6.4738]
[1760399688477,0.77787589,4242.8,4242.7,6.4738]
[1760399689576,0.44857589,4242.8,4242.7,6.4738]
[1760399690175,0.75677589,4242.8,4242.7,6.4738]
[1760399690375,0.96427589,4242.8,4242.7,6.4738]
[1760399691579,0.44857589,4242.8,4242.7,6.4738]
[1760399692179,0.75677589,4242.8,4242.7,6.4738]
[1760399692378,0.96427589,4242.8,4242.7,6.4738]
[1760399692582,0.44857589,4242.8,4242.7,6.4738]
[1760399693179,0.44857589,4242.8,4242.7,6.89767]
[1760399693978,0.44857589,4242.8,4242.7,6.4738]
[1760399696775,1.18077589,4242.8,4242.7,5.708]
[1760399697879,1.18077589,4242.8,4242.7,5.9297]
[1760399698378,1.18077589,4242.8,4242.7,6.1463]
[1760399698580,1.18077589,4242.8,4242.7,6.4812]
[1760399699076,3.2078,4243.2,4243.0,0.1275]
[1760399699276,0.42379,4243.6,4243.4,0.4383]
[1760399699485,0.93949,4243.6,4243.5,6.4792]
[1760399700180,0.94190838,4243.6,4243.5,6.4792]
[1760399700880,0.42387,4242.7,4242.5,4.9002707]
[1760399701087,0.7322,4242.6,4242.5,3.2078]
[1760399701285,0.7322,4242.6,4242.5,8.9138]
[1760399706889,0.7322,4242.6,4242.5,9.1355]
[1760399709483,1.15608,4242.6,4242.5,9.1355]
[1760399710092,1.15608,4242.6,4242.5,5.9277]
[1760399713394,1.15608,4242.6,4242.5,5.706]
[1760399715786,1.15608,4242.6,4242.5,5.9277]
[1760399716194,0.55334,4242.0,4241.9,3.412]
[1760399716391,1.18895,4241.9,4241.8,0.2070687]
[1760399716587,1.18895,4241.9,4241.8,0.0028687]
[1760399725899,4.39675,4241.9,4241.8,0.0028687]
[1760399726600,0.97365,4241.9,4241.8,0.7348687]
[1760399726899,1.1889,4242.4,4242.3,0.2042]
[1760399727399,1.1889,4242.4,4242.3,0.732]
[1760399727601,1.1889,4242.4,4242.3,0.4168]
[1760399727895,1.1889,4242.4,4242.0,0.3152]
[1760399728201,0.42395,4241.9,4241.8,6.8638287]
[1760399728595,0.42395,4241.9,4241.8,6.4398687]
[1760399728797,0.97365,4241.9,4241.8,6.4398687]
[1760399729805,1.18895,4241.9,4241.8,0.0028687]
[1760399730100,1.18895,4241.9,4241.8,0.2070687]